fUST/lending_fUST_20240107
["ID","MTS","AMOUNT","RATE_DAILY","PERIOD"]
[310571634,1704579588914,-161.47738356,0.00019205,2]
[310571765,1704579982988,-1669.23938039,0.000189,2]
[310571766,1704579983044,-34.0661098,0.000189,2]
[310571770,1704580036898,-166.45378566,0.00019525,2]
[310571771,1704580036927,-173.13680969,0.00019526,2]
[310571772,1704580037024,-6.93042031,0.00019526,2]
[310571792,1704580184107,-5000.0,0.00019525,2]
[310571793,1704580184393,-5000.0,0.00019525,2]
[310571794,1704580184571,-5000.0,0.00019525,2]
[310571795,1704580184812,-5000.0,0.00019525,2]
[310571796,1704580184867,-4900.0,0.00019525,2]
[310571916,1704580232746,-154.87609912,0.00019784,2]
[310571917,1704580232755,-154.96842241,0.00019785,2]
[310571919,1704580232764,-154.87609912,0.00019884,3]
[310571921,1704580232774,-1988.32263926,0.00019884,2]
[310571923,1704580232783,-154.87609912,0.00019885,2]
[310571925,1704580232792,-19645.0560538,0.00019998,2]
[310571928,1704580232807,-4658.38922871,0.00019999,2]
[310571929,1704580232816,-2076.65490248,0.0002,2]
[310571931,1704580232825,-326.45250531,0.00021,2]
[310571933,1704580232834,-5948.34132013,0.0002163,2]
[310571935,1704580232843,-166.8848065,0.00021663,2]
[310571937,1704580232853,-9010.0,0.00021918,2]
[310571939,1704580232861,-181.83907,0.00021918,2]
[310571941,1704580232871,-156.72230709,0.00023849,2]
[310571943,1704580232881,-1703.30549019,0.000239,2]
[310571945,1704580232891,-871.79394782,0.00024034,2]
[310571947,1704580232900,-4707.01098899,0.00025,2]
[310571949,1704580232909,-633.24123024,0.0002527,2]
[310571951,1704580232918,-179.824082,0.0002533,2]
[310571953,1704580232927,-41389.23956804,0.00025701,2]
[310572514,1704580238900,-8610.76043196,0.00025701,2]
[310572516,1704580238910,-7509.05795706,0.00026,3]
[310572518,1704580238920,-620.76145827,0.00026334,2]
[310572520,1704580238929,-2809.982769,0.00026612,2]
[310572522,1704580238939,-238.22346258,0.00026612,2]
[310572524,1704580238949,-1016.34475026,0.00026612,2]
[310572526,1704580238959,-1826.74903893,0.00026612,2]
[310572528,1704580238969,-411.80210469,0.00026612,2]
[310572530,1704580238978,-403.34210604,0.00026612,2]
[310572532,1704580238987,-617.52618345,0.00026612,2]
[310572534,1704580238997,-441.47937965,0.00026613,2]
[310572536,1704580239006,-1383.48359885,0.00026613,2]
[310572538,1704580239015,-15959.86284542,0.00026613,2]
[310572540,1704580239025,-1820.2732084,0.00026614,2]
[310572542,1704580239034,-762.80188617,0.00026614,2]
[310572544,1704580239044,-3004.54432201,0.00026614,2]
[310572546,1704580239053,-200.0,0.00026614,2]
[310572548,1704580239063,-223.7836429,0.00026621,2]
[310572550,1704580239073,-360.34675522,0.00026621,2]
[310572552,1704580239082,-164.74006432,0.00026621,2]
[310572554,1704580239091,-178.33919213,0.00026621,2]
[310572556,1704580239101,-158.72225574,0.00026622,2]
[310572558,1704580239110,-3000.0,0.00026622,2]
[310572560,1704580239119,-155.01506558,0.00026623,2]
[310572562,1704580239128,-2633.35645047,0.00026623,2]
[310572565,1704580239138,-246.26509339,0.00026633,2]
[310572567,1704580239147,-1003.73562959,0.00026633,2]
[310572569,1704580239156,-867.62948429,0.00026633,2]
[310572571,1704580239167,-154.97130112,0.00026633,2]
[310572573,1704580239177,-1192.95254363,0.00026633,2]
[310572575,1704580239186,-266.24181002,0.00026633,2]
[310572577,1704580239196,-333.75767672,0.00026633,2]
[310572579,1704580239205,-223.62862816,0.00026633,2]
[310572581,1704580239214,-168.85531125,0.00026633,2]
[310572583,1704580239224,-1094.59579196,0.00026633,2]
[310572585,1704580239234,-155.54479063,0.00026633,2]
[310572587,1704580239243,-213.65969948,0.00026633,2]
[310572589,1704580239253,-155.01075224,0.00026633,2]
[310572591,1704580239262,-242.79110021,0.00026633,2]
[310572593,1704580239273,-287.21277325,0.00026633,2]
[310572595,1704580239284,-155.45238976,0.00026633,2]
[310572597,1704580239296,-283.82704819,0.00026633,2]
[310572599,1704580239306,-156.19249059,0.00026633,2]
[310572601,1704580239315,-446.72704991,0.00026633,2]
[310572603,1704580239325,-416.66910229,0.00026633,2]
[310572605,1704580239334,-441.67781575,0.00026633,2]
[310572607,1704580239343,-230.84808073,0.00026633,2]
[310572609,1704580239353,-585.90397292,0.00026633,2]
[310572611,1704580239363,-156.66790441,0.00026633,2]
[310572613,1704580239372,-384.86759273,0.00026634,2]
[310572615,1704580239382,-24958.76,0.00026634,3]
[310572617,1704580239391,-155.18285666,0.00026643,2]
[310572619,1704580239400,-196.05752698,0.00026643,2]
[310572621,1704580239410,-156.40361276,0.00026643,2]
[310572623,1704580239419,-522.51047534,0.00026643,2]
[310572625,1704580239428,-234.48957017,0.00026643,2]
[310572627,1704580239437,-525.20504904,0.00026643,2]
[310572629,1704580239447,-154.89570734,0.00026643,2]
[310572631,1704580239457,-1321.08258665,0.00026643,2]
[310572633,1704580239466,-400.16424933,0.00026643,2]
[310572635,1704580239475,-305.68639929,0.00026643,2]
[310572637,1704580239485,-953.36702166,0.00026643,2]
[310572639,1704580239494,-215.76358517,0.00026643,2]
[310572640,1704580239503,-231.10405101,0.00026644,2]
[310572642,1704580239513,-20845.41719757,0.00026644,2]
[310572644,1704580239523,-441.86672202,0.00026644,4]
[310572646,1704580239534,-394.15922462,0.00026644,4]
[310572648,1704580239544,-500.0,0.00026644,4]
[310572651,1704580239554,-500.0,0.00026644,4]
[310572652,1704580239564,-500.0,0.00026644,4]
[310572654,1704580239574,-500.0,0.00026644,4]
[310572657,1704580239583,-500.0,0.00026644,4]
[310572659,1704580239593,-500.0,0.00026644,4]
[310572676,1704580239748,-173.20454597,0.00026644,4]
[310572678,1704580239758,-500.0,0.00026644,4]
[310572680,1704580239768,-500.0,0.00026644,4]
[310572682,1704580239777,-500.0,0.00026644,4]
[310572684,1704580239787,-500.0,0.00026644,4]
[310572686,1704580239796,-619.64086462,0.00026644,4]
[310572688,1704580239805,-500.0,0.00026644,4]
[310572690,1704580239814,-500.0,0.00026644,4]
[310572692,1704580239823,-158.15276459,0.00026644,4]
[310572694,1704580239832,-500.0,0.00026644,4]
[310572696,1704580239842,-50000.0,0.00026645,2]
[310572698,1704580239851,-50000.0,0.00026645,2]
[310572700,1704580239861,-21919.70261991,0.00026645,2]
[310572851,1704580241792,-28080.29738009,0.00026645,2]
[310572853,1704580241801,-25306.95254034,0.00026645,2]
[310572921,1704580243835,-475.39319946,0.00026645,2]
[310572922,1704580243847,-5468.77945529,0.00026645,2]
[310586972,1704581431826,-154.87609912,0.00023755,4]
[310586973,1704581431844,-172.99502236,0.00023756,2]
[310586974,1704581431857,-1415.19635929,0.0002381,2]
[310587042,1704581438284,-573.12627997,0.0002381,2]
[310587044,1704581438293,-24900.0,0.00023811,2]
[310587046,1704581438303,-180.06723,0.00023856,2]
[310587048,1704581438312,-729.41975217,0.00024545,2]
[310587050,1704581438321,-158.72225574,0.00024807,2]
[310587052,1704581438331,-223.7836429,0.00024807,2]
[310587054,1704581438340,-360.34675522,0.00024807,2]
[310587056,1704581438349,-178.33919213,0.00024807,2]
[310587058,1704581438359,-164.74006432,0.00024807,2]
[310587060,1704581438367,-2633.35645047,0.00024808,2]
[310587062,1704581438377,-3000.0,0.00025,2]
[310587064,1704581438386,-1003.73562959,0.00025598,2]
[310587066,1704581438395,-867.62948429,0.00025598,2]
[310587068,1704581438404,-155.01506558,0.00025598,2]
[310587070,1704581438414,-246.26509339,0.00025599,2]
[310587072,1704581438423,-27960.74838587,0.000256,2]
[310587074,1704581438432,-23008.45,0.0002661,3]
[310587076,1704581438441,-12065.68,0.0002662,3]
[310587078,1704581438451,-384.86759273,0.00026623,2]
[310587080,1704581438460,-441.67781575,0.00026623,2]
[310587082,1704581438469,-416.66910229,0.00026623,2]
[310587084,1704581438479,-230.84808073,0.00026623,2]
[310587086,1704581438489,-156.66790441,0.00026623,2]
[310587088,1704581438501,-585.90397292,0.00026623,2]
[310587090,1704581438511,-446.72704991,0.00026623,2]
[310587092,1704581438520,-215.76358517,0.00026629,2]
[310587094,1704581438530,-50000.0,0.0002663,2]
[310587096,1704581438539,-52621.87492131,0.0002663,2]
[310587532,1704581442928,-2072.78569448,0.0002663,2]
[310600232,1704581655324,154.84515385,0.000176,2]
[310600657,1704581743981,150.87929656,0.00029542,120]
[310601074,1704582306155,150.8642222,0.0002957,120]
[310601075,1704582351204,200.0,0.00026975,15]
[310601087,1704582615611,150.87929656,0.00029716,120]
[310601148,1704582632097,-154.87609912,0.00024513,4]
[310601149,1704582632106,-1307.31206176,0.00024514,2]
[310601418,1704582638338,-1988.32263926,0.00024513,2]
[310601421,1704582638347,-7564.32623735,0.00024514,2]
[310601424,1704582638357,-594.04733841,0.0002453,2]
[310601426,1704582638367,-24900.0,0.00024752,2]
[310601428,1704582638379,-782.53977049,0.00026267,2]
[310601430,1704582638388,-620.03807291,0.00026268,2]
[310601432,1704582638397,-446.72704991,0.00026619,2]
[310601434,1704582638407,-230.84808073,0.00026619,2]
[310601437,1704582638418,-156.66790441,0.00026619,2]
[310601439,1704582638427,-10216.36,0.0002662,3]
[310601440,1704582638436,-19481.92,0.0002662,3]
[310601442,1704582638445,-384.86759273,0.00026628,2]
[310601445,1704582638455,-416.66910229,0.00026628,2]
[310601447,1704582638465,-585.90397292,0.00026628,2]
[310601449,1704582638474,-441.67781575,0.00026628,2]
[310601451,1704582638483,-15726.14426876,0.0002663,2]
[310601453,1704582638493,-5000.0,0.0002663,2]
[310601455,1704582638502,-13937.48714156,0.0002663,2]
[310601457,1704582638511,-5000.0,0.0002663,2]
[310601459,1704582638520,-4525.78190478,0.0002663,2]
[310601461,1704582638530,-4566.35113296,0.0002663,2]
[310606694,1704582692743,2752.78273427,0.00019973,5]
[310613460,1704582967590,150.8642222,0.000297,120]
[310613471,1704583287132,150.8642222,0.00028607,120]
[310613476,1704583361196,-5000.0,0.00019436,2]
[310613477,1704583361368,-5000.0,0.00019436,2]
[310613478,1704583361472,-5000.0,0.00019436,2]
[310613479,1704583361590,-5000.0,0.00019436,2]
[310613480,1704583361695,-2942.978778,0.00019436,2]
[310613481,1704583367186,-255.50820642,0.00019435,2]
[310613482,1704583367425,-5.21445319,0.00019435,2]
[310613485,1704583392946,-606.59727721,0.00019435,2]
[310613486,1704583393112,-12.37953627,0.00019435,2]
[310613487,1704583393638,594.21774094,0.00019435,2]
[310613488,1704583393667,606.59727721,0.00019435,2]
[310613489,1704583393902,-4009.22141276,0.00019435,2]
[310613490,1704583395050,297.92602586,0.00019435,2]
[310613491,1704583395245,154.8915759,0.00019435,2]
[310613492,1704583396798,-672.3116322,0.00019435,2]
[310613493,1704583397023,-13.72064555,0.00019435,2]
[310613494,1704583398166,658.59098665,0.00019435,2]
[310613495,1704583398197,672.3116322,0.00019435,2]
[310613496,1704583398520,-5000.0,0.00019435,2]
[310613497,1704583398691,-3941.56245372,0.00019435,2]
[310613500,1704583410923,-606.59727721,0.00019435,2]
[310613501,1704583411046,-12.37953627,0.00019435,2]
[310613502,1704583411081,297.92602586,0.00019435,2]
[310613503,1704583414017,-5000.0,0.00019435,2]
[310613504,1704583414492,-210.03643091,0.00019435,2]
[310613505,1704583414519,-690.32875319,0.00019435,2]
[310613506,1704583417265,154.8915759,0.00019435,2]
[310613508,1704583420534,-5000.0,0.00019435,2]
[310613509,1704583420782,-5000.0,0.00019435,2]
[310613510,1704583420886,-272.46507257,0.00019435,2]
[310613511,1704583429419,-259.4965583,0.00019435,2]
[310613512,1704583429566,-5.29584813,0.00019435,2]
[310613513,1704583430555,254.20071017,0.00019435,2]
[310613514,1704583430584,259.4965583,0.00019435,2]
[310613515,1704583430612,149.79026544,0.00019435,2]
[310613521,1704583435925,-158.03421666,0.00019435,2]
[310613522,1704583435953,-4841.96578334,0.00019435,2]
[310613523,1704583436056,-368.07064757,0.00019435,2]
[310613525,1704583438234,4631.92935243,0.00019435,2]
[310613526,1704583438262,5000.0,0.00019435,2]
[310613527,1704583438291,640.53572014,0.00019435,2]
[310613528,1704583456414,-154.8915759,0.00019433,2]
[310613529,1704583456443,-322.57910218,0.00019433,2]
[310613530,1704583456471,-142.24433082,0.00019433,2]
[310613531,1704583456604,-12.64724508,0.00019433,2]
[310613532,1704583456736,-154.8915759,0.00019434,3]
[310613533,1704583456764,-4845.1084241,0.00019435,2]
[310613534,1704583456858,-4051.75676643,0.00019435,2]
[310613535,1704583459921,-4508.45171424,0.00019435,2]
[310613536,1704583460102,-92.00921866,0.00019435,2]
[310613542,1704583508379,-5000.0,0.0001959,2]
[310613543,1704583508577,-313.9463782,0.0001959,2]
[310613544,1704583508613,-4686.0536218,0.0001959,2]
[310613545,1704583508783,-5000.0,0.0001959,2]
[310613546,1704583508827,-5000.0,0.0001959,2]
[310613547,1704583508910,-5000.0,0.0001959,2]
[310613548,1704583509058,-5000.0,0.0001959,2]
[310613549,1704583509169,-213.9463782,0.0001959,2]
[310613565,1704583629025,150.89437394,0.00028752,120]
[310615219,1704583832261,-945.77631142,0.0001982,2]
[310615221,1704583832271,-154.8915759,0.0001982,3]
[310615222,1704583832281,-154.8915759,0.00019821,2]
[310615224,1704583832291,-1988.32263926,0.00019821,2]
[310615225,1704583832299,-154.8915759,0.00019822,2]
[310615226,1704583832309,-322.14948125,0.00019822,2]
[310615228,1704583832318,-154.8915759,0.00019822,2]
[310615229,1704583832327,-560.03529731,0.00019823,2]
[310615231,1704583832336,-154.8915759,0.00019823,2]
[310615232,1704583832345,-2032.94928911,0.00019823,2]
[310615234,1704583832355,-520.52631159,0.00019824,2]
[310615235,1704583832365,-154.8915759,0.00019825,2]
[310615236,1704583832374,-19645.0560538,0.00019825,2]
[310615238,1704583832383,-1574.6122842,0.00019827,2]
[310615239,1704583832393,-152.47868896,0.00019837,2]
[310615241,1704583832402,-268.8999641,0.0002,2]
[310615242,1704583832412,-676.3587277,0.0002,2]
[310615243,1704583832421,-255.10803984,0.00020055,2]
[310615245,1704583832430,-217.386201,0.00020056,2]
[310615246,1704583832439,-2680.60745421,0.00020776,2]
[310615248,1704583832448,-207.19093284,0.00023055,2]
[310615249,1704583832458,-243.52021274,0.00023074,2]
[310615251,1704583832467,-204.8358919,0.00023075,2]
[310615252,1704583832477,-14448.06514492,0.00023076,3]
[310615465,1704583838391,-1890.91964581,0.00023076,3]
[310615467,1704583838447,-1414.28000001,0.00023076,3]
[310615469,1704583838502,-14114.93520926,0.00023076,3]
[310615471,1704583838511,-26556.84,0.00023076,3]
[310615472,1704583838520,-2098.68320007,0.00023084,2]
[310615473,1704583838530,-284.76187805,0.00023084,2]
[310615474,1704583838541,-180.70773877,0.00023085,2]
[310615476,1704583838552,-155.1804772,0.00023085,2]
[310615477,1704583838562,-435.68157441,0.00023085,2]
[310615478,1704583838572,-37290.61588904,0.00023086,2]
[310615479,1704583838585,-565.21812734,0.00023086,2]
[310615544,1704583841431,-4857.51015075,0.00023086,2]
[310615677,1704583846438,-154.8915759,0.00020776,4]
[310615679,1704583846447,-154.8915759,0.00023084,2]
[310615681,1704583846456,-1379.60099998,0.00023085,2]
[310615683,1704583846465,-560.03529731,0.00023085,2]
[310615685,1704583846475,-215.5450925,0.00023085,2]
[310615687,1704583846484,-59.03547841,0.00023085,2]
[310618281,1704583962973,150.89437394,0.00029244,120]
[310618860,1704584517631,150.89437394,0.00029406,120]
[310618952,1704584794511,150.89437394,0.00029576,120]
[310619007,1704585032492,-154.8915759,0.00020847,2]
[310619018,1704585032603,-154.96842241,0.00020848,2]
[310619019,1704585032612,-154.8915759,0.00020946,2]
[310619020,1704585032621,-2385.31619751,0.00020986,2]
[310619021,1704585032631,-179.824082,0.00021083,2]
[310619022,1704585032639,-24900.0,0.00021177,2]
[310619023,1704585032648,-217.386201,0.00021618,2]
[310619024,1704585032669,-9010.0,0.00021918,2]
[310619025,1704585032679,-174.795741,0.00021918,2]
[310619026,1704585032688,-879.08289078,0.00022497,2]
[310619027,1704585032699,-5948.34132013,0.00022498,2]
[310619028,1704585032708,-228.37659232,0.00023084,2]
[310619029,1704585032718,-382.64233734,0.00023085,2]
[310619030,1704585032728,-7286.65583287,0.00023086,2]
[310619031,1704585032738,-2291.27896623,0.00024,2]
[310619032,1704585032747,-154.96842241,0.00024296,2]
[310619033,1704585032757,-263.39607872,0.00024386,2]
[310619034,1704585032766,-8871.63829911,0.00024386,2]
[310619035,1704585032776,-183.94826502,0.00024387,2]
[310619036,1704585032785,-3472.71353536,0.00024387,2]
[310619037,1704585032795,-957.54075731,0.00024396,2]
[310619038,1704585032804,-174.795741,0.00024482,2]
[310619039,1704585032813,-9511.11165731,0.0002494,3]
[310620338,1704586234932,-900.88579092,0.00020811,2]
[310620340,1704586234942,-154.86062544,0.00020812,4]
[310620342,1704586234951,-167.0361621,0.0002148,2]
[310620344,1704586234960,-117.86423844,0.00021999,2]
[310620348,1704586234991,-2495.48145421,0.00021999,2]
[310620351,1704586235000,-156.72230709,0.00022,2]
[310620354,1704586235010,-168.12749417,0.000225,2]
[310620356,1704586235020,-1825.89398498,0.0002284,2]
[310620358,1704586235029,-1223.79544312,0.00023063,3]
[310620734,1704586238788,-326.45250531,0.00021479,2]
[310620736,1704586238798,-15897.46455688,0.00023063,3]
[310620738,1704586238808,-7971.9436782,0.00023063,3]
[310620740,1704586238820,-6295.7763218,0.00023063,3]
[310620742,1704586238830,-6024.2236782,0.00023064,3]
[310620744,1704586238843,-14521.2863218,0.00023064,3]
[310620746,1704586238853,-4308.36129245,0.00023072,2]
[310620747,1704586238862,-24231.67404747,0.00023073,2]
[310620748,1704586238894,-25768.32595253,0.00023073,2]
[310620749,1704586238903,-50000.0,0.00023074,2]
[310620750,1704586238913,-384.4765782,0.00023998,2]
[310620751,1704586238922,-8871.63829911,0.00024,2]
[310620752,1704586238931,-782.53977049,0.00024,2]
[310620753,1704586238941,-200.0,0.0002494,2]
[310620754,1704586238950,-1820.2732084,0.0002494,2]
[310620755,1704586238960,-4908.73713996,0.00024989,2]
[310620756,1704586238970,-205.7096511,0.00024997,2]
[310620757,1704586238979,-166.8848065,0.00024998,2]
[310620758,1704586238989,-156.76187659,0.00024998,2]
[310620759,1704586238998,-2291.27896623,0.00024998,2]
[310620760,1704586239008,-214.88921849,0.00024998,2]
[310620761,1704586239017,-262.28552739,0.00024998,2]
[310620762,1704586239027,-769.41708107,0.00024998,2]
[310620763,1704586239036,-871.79394782,0.00024999,2]
[310620764,1704586239046,-666.7609947,0.00024999,2]
[310620765,1704586239055,-1715.17707288,0.00025,2]
[310620766,1704586239065,-59835.0,0.00025,2]
[310620768,1704586239074,-2483.08597309,0.00025,2]
[310620770,1704586239084,-755.57389251,0.00025,2]
[310620773,1704586239102,-151.0,0.00025,2]
[310620775,1704586239116,-1421.58959989,0.00026086,2]
[310620778,1704586239128,-620.00190365,0.00026203,2]
[310620780,1704586239141,-521.411736,0.00026262,2]
[310620782,1704586239153,-521.411736,0.00026262,2]
[310620785,1704586239165,-151.0,0.00026262,2]
[310620787,1704586239176,-294.29480218,0.00026361,2]
[310620789,1704586239186,-176.86551561,0.00026361,2]
[310620791,1704586239198,-483.53078943,0.00026361,2]
[310620794,1704586239210,-20639.76706088,0.00026362,2]
[310620796,1704586239222,-218.10469564,0.00026527,2]
[310620798,1704586239234,-308057.00725822,0.00026527,2]
[310620801,1704586239249,-3773.51999998,0.00026527,2]
[310621419,1704586781171,259.87664063,0.00026473,7]
[310621420,1704586799161,338.04626978,0.00026464,7]
[310621423,1704586933198,259.87664063,0.00026473,7]
[310621424,1704586953174,238.39245138,0.00026463,7]
[310621432,1704587105188,259.59819694,0.00026473,7]
[310621433,1704587123181,259.59819694,0.00026463,7]
[310621435,1704587149183,259.59819694,0.00026473,7]
[310621436,1704587165187,259.59819694,0.00023036,7]
[310621437,1704587187252,259.59819694,0.00023036,7]
[310621438,1704587209189,259.59819694,0.00023036,7]
[310621439,1704587231187,259.59819694,0.00023036,7]
[310621501,1704587431857,-154.86062544,0.00020654,2]
[310621502,1704587431866,-154.86062544,0.00020655,4]
[310621503,1704587431875,-343.70654924,0.00020656,2]
[310621504,1704587431884,-2073.50986914,0.00020656,2]
[310621802,1704587438192,-918.38813255,0.00020656,2]
[310621805,1704587438204,-1194.15929222,0.00020657,2]
[310621807,1704587438214,-244.68125366,0.00020713,2]
[310621809,1704587438223,-326.45250531,0.00021,2]
[310621811,1704587438233,-174.741013,0.00021834,2]
[310621813,1704587438242,-4300.0,0.00022483,2]
[310621815,1704587438251,-200.0,0.00023036,2]
[310621817,1704587438260,-1820.2732084,0.00023036,2]
[310621819,1704587438270,-50000.0,0.00023037,2]
[310621821,1704587438278,-4505.0327371,0.00023917,2]
[310621822,1704587438288,-7702.54,0.0002393,3]
[310621823,1704587438297,-9243.05,0.0002394,3]
[310621824,1704587438307,-6489.26,0.0002395,3]
[310621825,1704587438316,-5982.3341688,0.0002398,3]
[310622379,1704587445926,-154.86062544,0.00023919,4]
[310622380,1704587445937,-6418.78,0.0002392,3]
[310622381,1704587445946,-5231.1058312,0.0002398,3]
[310622382,1704587445956,-8871.63829911,0.00024,2]
[310622383,1704587445965,-782.53977049,0.00024,2]
[310622384,1704587445974,-26302.31282493,0.000243,2]
[310622448,1704588632045,-343.70654924,0.00020937,2]
[310622449,1704588632055,-154.86062544,0.00020938,4]
[310622450,1704588632065,-154.86062544,0.00020938,2]
[310622451,1704588632075,-171.69354,0.00020943,2]
[310622452,1704588632085,-216.475746,0.00021109,2]
[310622453,1704588632094,-438.13186663,0.00021867,2]
[310622454,1704588632276,-6056.17098257,0.00021867,2]
[310622455,1704588632285,-987.38578467,0.00021868,2]
[310625692,1704588938261,975.25077315,0.00017696,2]
[310625694,1704588974308,860.44599554,0.00017694,2]
[310625700,1704589012869,1522.62507003,0.00017694,2]
[310625702,1704589028864,377.67223176,0.00017694,2]
[310625703,1704589028889,1144.95283827,0.00017694,2]
[310625705,1704589051741,2007.45430288,0.00019663,5]
[310625740,1704589482776,223.887202,0.00017032,2]
[310625744,1704589517354,1350.89823601,0.00019663,5]
[310625746,1704589535342,624.17778381,0.00019663,5]
[310625747,1704589549330,24900.0,0.00017032,2]
[310625749,1704589602692,182.40769,0.00017032,2]
[310625750,1704589622694,183.15189024,0.00017032,2]
[310625751,1704589636142,174.73357117,0.0001801,2]
[310625752,1704589636881,223.83526593,0.0001801,2]
[310625753,1704589638667,3735.0637491,0.0001801,2]
[310625754,1704589641620,154.86062544,0.0001801,2]
[310625755,1704589641653,271.72897209,0.0001801,2]
[310625756,1704589642107,1029.74071675,0.0001801,2]
[310625757,1704589642675,860.12683361,0.0001801,2]
[310625758,1704589645324,154.86062544,0.0001801,2]
[310625759,1704589646576,154.86062544,0.0001801,2]
[310625760,1704589649989,15867.43030525,0.0001801,2]
[310625761,1704589651034,154.86062544,0.0001801,3]
[310625762,1704589656130,583.49846383,0.0001801,2]
[310625765,1704589671043,154.86062544,0.00016207,3]
[310625766,1704589677816,2700.51523635,0.00018008,5]
[310625767,1704589692010,757.75701723,0.00016207,2]
[310625768,1704589693045,154.86062544,0.00016207,3]
[310625771,1704589697261,207.4689053,0.00017418,2]
[310625772,1704589709045,154.86062544,0.00016207,3]
[310625781,1704589727051,154.86062544,0.00016207,3]
[310625782,1704589733302,230.29533204,0.00018,2]
[310625783,1704589733905,190.85270949,0.00018,2]
[310625784,1704589737746,1211.92219978,0.00018,2]
[310625785,1704589738205,154.86062544,0.00018,2]
[310625786,1704589740657,228.37659232,0.00018,2]
[310625787,1704589741048,154.86062544,0.000162,3]
[310625788,1704589741964,301.06112899,0.00018,2]
[310625789,1704589744200,154.86062544,0.00018,2]
[310625790,1704589744408,164.78197284,0.00018,2]
[310625791,1704589746368,2506.96614449,0.00018,2]
[310625794,1704589747256,525.20504904,0.00018,2]
[310625795,1704589749322,158.72225574,0.00018,2]
[310625796,1704589749834,4784.50329475,0.00018,2]
[310625797,1704589749909,209.43258228,0.00018,2]
[310625798,1704589751788,319.05067445,0.00018,2]
[310625799,1704589754214,3472.71353536,0.00018,2]
[310625800,1704589756250,154.86062544,0.00018,2]
[310625801,1704589756981,7937.55374235,0.00018,2]
[310625802,1704589759964,300.99259591,0.00018,2]
[310625803,1704589760199,154.86062544,0.00018,2]
[310625804,1704589760411,164.78197284,0.00018,2]
[310625805,1704589761055,154.86062544,0.000162,3]
[310625806,1704589762422,596.80063961,0.00018,2]
[310625807,1704589763252,592.50451983,0.00018,2]
[310625808,1704589767812,472.49057093,0.00018,2]
[310625809,1704589767890,223.83526593,0.00018,2]
[310625810,1704589768417,154.86062544,0.00018,2]
[310625811,1704589770674,154.86062544,0.00018,2]
[310625814,1704589772578,343.70654924,0.00018,2]
[310625815,1704589772983,7720.95449626,0.00018,2]
[310625816,1704589774225,156.60603131,0.00018,2]
[310625817,1704589774724,3256.88592321,0.00018,2]
[310625818,1704589776204,154.90704648,0.00018,2]
[310625819,1704589777702,860.12683361,0.00018,2]
[310625820,1704589778474,20845.41719757,0.00018,2]
[310625821,1704589779068,154.86062544,0.000162,3]
[310625822,1704589780422,197.15151199,0.00018,2]
[310625823,1704589780615,1171.77383703,0.00018,2]
[310625824,1704589783711,3735.0637491,0.00018,2]
[310625825,1704589783898,223.7836429,0.00018,2]
[310625826,1704589786425,196.07300066,0.00018,2]
[310625827,1704589786793,154.86062544,0.00018,2]
[310625828,1704589787149,1988.32263926,0.00018,2]
[310625829,1704589790505,286.11614031,0.00018,2]
[310625832,1704589798017,15867.43030525,0.00018,2]
[310625834,1704589805331,154.86062544,0.00017697,3]
[310625845,1704589829070,154.86062544,0.00017687,3]
[310625913,1704589832308,-1183.02155809,0.00018006,2]
[310625915,1704589832319,-311.03061552,0.00018006,2]
[310625920,1704589832362,-1889.47961082,0.00018006,2]
[310625922,1704589832371,-1029.74071675,0.00018007,2]
[310625924,1704589832380,-154.86062544,0.00018007,2]
[310625926,1704589832389,-382.64233734,0.00018008,2]
[310625927,1704589832398,-168.01991473,0.00018013,2]
[310625929,1704589832408,-2870.82868998,0.00018013,2]
[310625930,1704589832417,-155.38267031,0.00018013,2]
[310625932,1704589832427,-201.78664913,0.00018013,2]
[310625933,1704589832437,-238.22346258,0.00018013,2]
[310625934,1704589832446,-154.87609912,0.00018023,2]
[310625935,1704589832455,-255.87278695,0.00018024,2]
[310625936,1704589832465,-435.68157441,0.00018025,2]
[310625937,1704589832474,-180.70773877,0.00018031,2]
[310625938,1704589832483,-155.1804772,0.00018031,2]
[310625939,1704589832492,-284.76187805,0.00018031,2]